bitfinex-derivatives/quotes_ETHF0:USTF0_20260125
["timestamp","ask_amount","ask_price","bid_price","bid_amount"]
[1769381268891,0.00299293,2801.5,2800.5,3.81421999]
[1769381269591,0.89136826,2800.8,2800.0,3.44e-06]
[1769381269788,0.89136826,2800.5,2800.0,3.44e-06]
[1769381269985,0.89136826,2800.5,2799.4,3.81421999]
[1769381270584,0.17876,2800.3,2799.4,3.81421999]
[1769381270993,0.17876,2800.3,2799.4,3.81779964]
[1769381271595,0.17876,2800.3,2799.4,0.00357965]
[1769381279207,0.17876,2800.2,2799.4,0.00357965]
[1769381279999,0.17877,2800.1,2799.4,0.00357965]
[1769381281605,0.17877,2800.1,2799.4,3.81779964]
[1769381281899,0.89136826,2800.8,2799.4,4.7091679]
[1769381282101,0.17874,2800.5,2799.4,4.7091679]
[1769381283600,0.17875,2800.4,2799.4,4.7091679]
[1769381285201,0.17875,2800.3,2799.4,4.7091679]
[1769381287209,0.17876,2800.2,2799.4,4.7091679]
[1769381288110,0.17876,2800.2,2799.4,3.81779964]
[1769381295213,0.17877,2800.1,2799.4,3.81779964]
[1769381299518,0.17877,2800.1,2799.4,0.00357965]
[1769381299709,0.17877,2800.1,2799.4,6.45327516]
[1769381307813,0.17877,2800.1,2799.4,0.00357965]
[1769381309015,0.17877,2800.1,2799.4,3.67027516]
[1769381315623,0.17877,2800.1,2799.4,6.48627516]
[1769381315829,0.17877,2800.0,2799.4,3.67027516]
[1769381321817,0.17877,2800.0,2799.4,6.50327516]
[1769381323823,0.17877,2800.0,2799.4,3.67027516]
[1769381352455,2.12084846,2800.5,2799.4,3.67027516]
[1769381352757,5.87540317,2800.5,2799.4,3.67027516]
[1769381352960,3.75455471,2800.4,2799.4,3.67027516]
[1769381353153,0.17876,2800.2,2799.4,3.67027516]
[1769381355759,0.17876,2800.2,2799.4,7.49427516]
[1769381356255,0.17877,2800.0,2799.4,3.82757965]
[1769381356450,3.57593475,2800.5,2799.4,3.82757965]
[1769381356451,0.17878,2799.9,2799.4,3.82757965]
[1769381356664,0.17878,2799.9,2799.4,0.00357965]
[1769381361256,0.17878,2799.9,2799.4,3.78513846]
[1769381361964,0.17878,2799.9,2799.4,0.00357965]
[1769381366663,6.58863606,2800.5,2799.4,0.00357965]
[1769381366864,0.17879,2799.8,2799.4,0.00357965]
[1769381367768,0.17879,2799.8,2799.2,3.824]
[1769381368867,0.17879,2799.8,2799.2,3.82706761]
[1769381369763,2.12084846,2800.3,2799.2,7.60862642]
[1769381369964,0.17879,2799.8,2799.3,3.78155881]
[1769381370268,2.12084846,2800.4,2799.3,3.78155881]
[1769381370462,0.17879,2799.8,2799.4,3.78155881]
[1769381370766,2.12084846,2800.4,2799.4,3.78155881]
[1769381370968,0.17879,2799.8,2799.4,3.78155881]
[1769381371369,2.12084846,2800.4,2799.4,3.78155881]
[1769381371667,0.17875,2800.4,2799.6,0.89185285]
[1769381373264,0.17875,2800.4,2799.6,4.58337447]
[1769381373968,0.17875,2800.4,2799.7,0.89185285]
[1769381376271,0.17875,2800.4,2799.7,4.71585285]
[1769381378474,0.17875,2800.4,2799.7,3.824]
[1769381382673,0.17876,2800.3,2799.7,6.776]
[1769381382873,0.17876,2800.3,2799.7,3.824]
[1769381384381,0.17876,2800.2,2799.7,3.824]
[1769381385680,0.17877,2800.1,2799.7,3.824]
[1769381387977,0.17877,2800.0,2799.2,4.71892046]
[1769381388182,0.17877,2800.0,2799.2,7.54092046]
[1769381388879,0.17877,2800.0,2799.2,11.23244208]
[1769381390381,0.17877,2800.0,2799.2,8.41044208]
[1769381390982,0.89185285,2799.7,2799.2,0.00306761]
[1769381391276,3.72930267,2799.2,2797.5,3.69152162]
[1769381391482,0.17888,2798.3,2797.5,3.69152162]
[1769381392085,0.18347651,2798.3,2797.5,3.69514255]
[1769381392679,0.18347651,2798.3,2797.5,0.00362093]
[1769381396686,0.89644936,2798.3,2797.5,0.00362093]
[1769381396885,0.89644936,2798.3,2796.9,0.89185285]
[1769381396886,0.1789,2798.0,2796.9,0.89185285]
[1769381397284,0.1789,2798.0,2796.8,6.40952162]
[1769381397483,1.07075285,2798.0,2796.8,6.40952162]
[1769381397882,1.07075285,2798.0,2796.8,6.41217387]
[1769381398283,1.07075285,2798.0,2796.8,3.69417387]
[1769381398885,0.17891,2797.9,2796.8,3.69417387]
[1769381399287,0.17891,2797.9,2797.1,3.69152162]
[1769381399789,0.17891,2797.9,2797.2,4.58337447]
[1769381401184,0.17891,2797.9,2797.5,3.69152162]
[1769381401390,0.00459651,2798.3,2797.4,0.89185285]
[1769381401585,0.00459651,2798.3,2797.3,3.69152162]
[1769381402588,0.17891,2797.9,2797.3,3.69152162]
[1769381403186,0.00459651,2798.3,2797.4,0.89185285]
[1769381403393,0.17887,2798.5,2797.6,4.71181135]
[1769381403591,0.89185285,2799.0,2797.6,4.71181135]
[1769381403793,4.61492075,2799.0,2797.6,4.71181135]
[1769381404395,4.61819403,2799.0,2797.6,4.71181135]
[1769381404595,0.17887,2798.5,2797.6,4.71181135]
[1769381407390,0.17887,2798.5,2797.8,0.89185285]
[1769381407794,3.72634118,2799.0,2797.8,0.89185285]
[1769381408099,3.90518118,2799.0,2797.8,0.89185285]
[1769381408298,0.18211328,2799.0,2797.8,0.89185285]
[1769381408504,0.18211328,2799.0,2797.8,4.71181135]
[1769381409902,0.18211328,2799.0,2797.3,2.097]
[1769381409903,0.89185285,2798.6,2797.3,4.71181135]
[1769381410292,0.17887,2798.5,2797.3,4.71181135]
[1769381411705,0.17887,2798.5,2797.3,3.8199585]
[1769381412396,0.17887,2798.4,2797.3,3.8199585]
[1769381414297,0.17888,2798.3,2797.3,3.8199585]
[1769381415393,0.17889,2798.2,2797.3,3.8199585]
[1769381416400,0.17889,2798.2,2797.0,2.772]
[1769381416594,0.17889,2798.2,2797.1,7.42503328]
[1769381419010,3.60355335,2798.6,2796.8,0.00265225]
[1769381419011,3.60355335,2798.3,2797.0,3.824]
[1769381419508,3.60355335,2798.1,2797.0,3.824]
[1769381420503,0.17888,2798.3,2797.0,7.42503328]
[1769381420713,2.12084846,2798.6,2797.2,3.60103328]
[1769381421007,5.90324181,2798.9,2797.2,3.60103328]
[1769381421300,3.74690997,2798.8,2797.2,3.60103328]
[1769381421505,3.74690997,2798.7,2797.2,3.60103328]
[1769381421714,3.74690997,2798.6,2797.2,3.60103328]
[1769381421900,0.17885,2798.8,2797.2,3.60103328]
[1769381422203,3.74724692,2798.7,2797.2,3.60103328]
[1769381422405,3.74724692,2798.6,2797.2,3.60103328]
[1769381422595,0.17885,2798.8,2797.2,3.60103328]
[1769381422795,3.74724035,2798.7,2797.2,3.60103328]
[1769381422996,3.74724035,2798.6,2797.2,3.60103328]
[1769381423203,0.17885,2798.8,2797.2,3.60103328]
[1769381423403,3.74710809,2798.7,2797.2,3.60103328]
[1769381423606,3.74710809,2798.6,2797.2,3.60103328]
[1769381423906,3.78241335,2798.7,2797.2,3.60103328]
[1769381424103,3.74725998,2798.6,2797.2,3.60103328]
[1769381424308,0.17886,2798.6,2797.2,3.60103328]
[1769381425896,0.17887,2798.5,2797.2,3.60103328]
[1769381426503,0.17887,2798.4,2797.2,3.60103328]
[1769381429811,0.17888,2798.3,2797.2,3.60103328]
[1769381430014,0.17888,2798.3,2797.0,2.097]
[1769381430015,0.17889,2798.2,2797.0,5.921]
[1769381430207,3.60355335,2798.4,2797.0,2.097]
[1769381430415,0.17892,2797.8,2796.8,3.60368553]
[1769381431013,0.17892,2797.8,2796.8,0.00265225]
[1769381431711,0.17892,2797.7,2796.8,0.00265225]
[1769381435914,0.17893,2797.6,2796.8,0.00265225]
[1769381439115,3.58111874,2797.6,2796.2,3.576]
[1769381439317,3.58111874,2797.6,2796.0,7.82897728]
[1769381439318,0.17895,2797.2,2795.7,3.75045108]
[1769381440120,3.76006874,2797.2,2795.7,0.0039304]
[1769381440718,3.58111874,2797.0,2795.7,0.0039304]
[1769381440917,3.58430194,2797.0,2795.7,0.0039304]
[1769381441821,0.0031832,2797.0,2795.7,3.75438148]
[1769381443614,3.58430194,2797.0,2795.7,0.0039304]
[1769381445112,3.76327194,2797.0,2795.7,0.0039304]
[1769381445414,3.58111874,2796.8,2795.7,0.0039304]
[1769381445813,3.76009874,2796.8,2795.7,0.0039304]
[1769381447218,0.17898,2796.8,2795.7,0.0039304]
[1769381448422,0.0031832,2797.0,2795.7,3.75438148]
[1769381451919,0.0031832,2797.0,2795.7,4.64734642]
[1769381453124,0.0031832,2797.0,2795.7,0.89689534]
[1769381454320,0.1821432,2797.0,2795.7,0.89689534]
[1769381454521,0.17897,2796.9,2795.7,0.0039304]
[1769381454925,3.76009874,2796.8,2795.7,0.0039304]
[1769381455327,3.76009874,2796.8,2795.7,3.8279304]
[1769381455821,0.17898,2796.8,2795.7,3.8279304]
[1769381457530,0.17898,2796.8,2795.7,7.57838148]
[1769381457921,3.76009874,2796.8,2795.7,3.8279304]
[1769381458320,3.76010874,2796.7,2795.7,3.8279304]
[1769381459733,3.76010874,2796.7,2795.7,0.0039304]
[1769381461221,3.58111874,2796.5,2795.6,1.65197996]
[1769381461422,3.58111874,2796.3,2794.8,10.195]
[1769381461631,3.58111874,2796.3,2794.6,3.578]
[1769381461832,3.58111874,2796.3,2794.7,3.75045108]
[1769381462331,3.58111874,2796.3,2794.7,3.75433322]
[1769381463734,4.0260403,2796.1,2794.7,3.75433322]
[1769381466135,0.17902,2796.1,2794.7,3.75433322]
[1769381466328,0.17903,2796.0,2794.7,3.75433322]
[1769381466525,3.8470203,2796.2,2794.7,7.57833322]
[1769381467636,0.17904,2795.8,2794.7,3.82788214]
[1769381468335,0.17906,2795.5,2794.7,3.82788214]
[1769381468538,0.17906,2795.5,2794.7,0.00388214]
[1769381469332,0.17907,2795.4,2794.7,0.00388214]
[1769381469534,0.17907,2795.3,2794.7,0.00388214]
[1769381469732,0.17907,2795.3,2794.3,3.80285607]
[1769381470734,0.17907,2795.3,2794.3,3.80667037]
[1769381471840,0.17904,2795.9,2794.3,4.69963531]
[1769381472140,0.17904,2795.9,2794.5,3.80285607]
[1769381473639,0.17904,2795.9,2794.9,4.69733292]
[1769381476637,0.17904,2795.9,2795.0,3.48977064]
[1769381476842,0.17904,2795.9,2795.1,4.38424749]
[1769381477345,0.89447685,2796.4,2795.2,3.48977064]
[1769381480843,0.89447685,2796.4,2795.1,0.89447685]
[1769381481549,0.89447685,2796.4,2795.1,4.38424749]
[1769381481744,0.89447685,2796.4,2795.1,7.31377064]
[1769381481941,0.89447685,2796.4,2795.2,7.31377064]
[1769381482348,1.07347685,2796.4,2795.3,3.48977064]
[1769381482744,1.07347685,2796.4,2795.1,3.824]
[1769381483547,0.17901,2796.3,2795.1,3.824]
[1769381483746,0.17902,2796.2,2795.1,3.824]
[1769381486247,0.17902,2796.1,2795.1,3.824]
[1769381487644,0.17902,2796.1,2795.0,3.824]
[1769381488149,0.17902,2796.1,2795.0,7.31377064]
[1769381488552,0.17902,2796.1,2795.3,0.89447685]
[1769381490550,0.17902,2796.1,2795.3,4.38424749]
[1769381491049,0.17902,2796.1,2795.0,3.824]
[1769381491050,2.10847492,2796.8,2795.5,4.38424749]
[1769381491449,2.10847492,2796.8,2795.6,3.48977064]
[1769381491653,3.76142152,2796.7,2795.6,3.48977064]
[1769381491849,3.76142152,2796.6,2795.1,3.48977064]
[1769381492050,0.179,2796.4,2795.3,0.89447685]
[1769381492252,0.17901,2796.3,2795.3,0.89447685]
[1769381493152,0.17901,2796.3,2795.4,3.76676767]
[1769381493549,0.17901,2796.3,2795.4,7.59076767]
[1769381494950,0.17901,2796.3,2795.5,3.76676767]
[1769381495157,0.17901,2796.3,2795.6,4.66124452]
[1769381495359,0.17897,2796.9,2795.6,4.66124452]
[1769381496460,0.17897,2796.9,2795.9,4.66124452]
[1769381496660,0.17897,2796.9,2796.1,3.76676767]
[1769381499766,0.0031832,2797.0,2796.1,3.76676767]
[1769381500063,0.0031832,2797.0,2796.2,3.76676767]
[1769381501258,0.89447685,2797.4,2796.2,3.76676767]
[1769381501457,0.89447685,2797.4,2796.3,3.76676767]
[1769381501654,0.17893,2797.5,2796.3,3.76676767]
[1769381501857,0.17893,2797.5,2796.3,7.59076767]
[1769381502058,0.17893,2797.5,2796.4,3.76676767]
[1769381502265,0.18258871,2797.5,2796.5,8.48524452]
[1769381502464,0.18258871,2797.5,2796.6,3.76676767]
[1769381503765,0.17894,2797.4,2796.5,3.824]
[1769381508161,0.17894,2797.4,2796.4,0.00450635]
[1769381509865,0.89813556,2797.5,2796.4,0.00450635]
[1769381509866,0.17895,2797.3,2796.4,0.00450635]
[1769381514168,0.17895,2797.2,2796.4,0.00450635]
[1769381516070,0.17895,2797.2,2796.4,3.77127402]
[1769381520174,0.00365871,2797.5,2796.7,4.66124452]
[1769381522372,0.17891,2797.8,2796.9,0.89447685]
[1769381522579,0.17891,2797.8,2797.0,6.78276767]
[1769381522875,0.17891,2797.8,2797.1,3.76676767]
[1769381523275,0.00293968,2797.8,2797.1,3.76676767]
[1769381523472,0.17891,2797.8,2797.1,4.66124452]
[1769381523675,0.17888,2798.4,2797.1,4.66124452]
[1769381524476,0.18152436,2798.4,2797.1,4.66124452]
[1769381524877,0.18152436,2798.4,2797.5,0.89447685]
[1769381526980,0.18152436,2798.4,2797.5,4.72690679]
[1769381529184,0.18152436,2798.4,2797.7,0.89447685]
[1769381532586,0.18152436,2798.4,2797.7,4.72690679]
[1769381535288,0.18152436,2798.4,2797.7,0.89447685]
[1769381535686,0.18152436,2798.4,2797.3,3.83242994]
[1769381546198,0.18152436,2798.4,2797.4,7.60688356]
[1769381552214,0.18152436,2798.4,2797.5,7.60688356]
[1769381553613,2.10847492,2798.9,2797.6,4.50492873]
[1769381553813,3.55346792,2799.0,2797.2,3.61210195]
[1769381554016,0.17889,2798.2,2797.2,3.61210195]
[1769381554518,0.1789,2798.1,2797.2,3.61210195]
[1769381554716,0.1789,2798.1,2796.8,7.82897728]
[1769381555017,3.55810319,2798.2,2796.7,7.54592873]
[1769381555406,3.55810319,2798.2,2796.7,3.61210195]
[1769381555407,0.17892,2797.8,2796.7,3.61210195]
[1769381557822,3.55810319,2798.2,2796.7,3.61210195]
[1769381558019,0.17893,2797.6,2796.7,3.61210195]
[1769381560418,0.17893,2797.6,2796.4,0.00450635]
[1769381560614,0.17893,2797.6,2796.4,3.05250635]
[1769381561018,0.17893,2797.6,2796.4,6.6646083]
[1769381564224,0.17893,2797.6,2796.5,3.61210195]
[1769381564420,3.55346792,2797.6,2796.5,3.61210195]
[1769381564625,0.17898,2796.8,2795.7,3.61210195]
[1769381564818,0.17898,2796.7,2795.4,3.052]
[1769381565023,0.17898,2796.7,2795.5,0.00450635]
[1769381565621,0.17898,2796.7,2795.5,0.00900686]
[1769381565822,0.17898,2796.7,2795.5,3.62110881]
[1769381566627,0.17895,2797.2,2795.8,3.61210195]
[1769381567328,0.17896,2797.1,2795.8,3.61210195]
[1769381567532,0.17896,2797.1,2796.0,3.61210195]
[1769381567827,3.55346792,2797.1,2795.9,0.00450635]
[1769381568018,0.179,2796.5,2795.5,0.00450051]
[1769381568322,0.179,2796.5,2795.6,0.00450635]
[1769381569928,0.179,2796.5,2795.6,3.82850635]
[1769381570626,0.179,2796.4,2795.6,3.82850635]
[1769381570825,0.17901,2796.3,2795.6,0.00450635]
[1769381571027,0.17902,2796.2,2795.6,0.00450635]
[1769381571227,0.18183298,2796.2,2795.6,0.00450635]
[1769381579537,0.18183298,2796.2,2795.5,0.00450051]
[1769381579736,3.7353009,2796.2,2795.5,0.00900686]
[1769381580735,3.7353009,2796.2,2795.5,0.00450051]
[1769381584431,3.7353009,2796.2,2795.6,0.00450635]
[1769381586942,0.18183298,2796.2,2795.6,0.00450635]
[1769381588346,0.18183298,2796.2,2795.5,0.00450051]
[1769381588538,0.18183298,2796.2,2795.6,0.00450635]
[1769381589141,3.89230743,2796.2,2795.6,0.00450635]
[1769381589641,3.89230743,2796.2,2795.5,0.00450051]
[1769381595644,0.18183298,2796.2,2795.5,0.00450051]
[1769381596947,0.00281298,2796.2,2795.6,0.89443438]
[1769381605459,0.17899,2796.6,2795.8,0.89443438]
[1769381606462,0.18197228,2796.6,2795.8,0.89443438]
[1769381606958,0.18197228,2796.6,2795.5,4.68793423]
[1769381607460,0.18197228,2796.6,2795.5,0.89893489]
[1769381607761,0.18197228,2796.6,2795.5,4.72293489]
[1769381613665,0.18197228,2796.6,2795.5,0.89893489]
[1769381615566,0.18197228,2796.6,2795.5,4.45710149]
[1769381615966,0.18197228,2796.6,2795.6,3.5581666]
[1769381623968,3.96459039,2796.6,2795.5,0.00450051]
[1769381624264,3.96459039,2796.6,2794.6,4.45260098]
[1769381624265,0.17903,2796.0,2794.6,4.45260098]
[1769381624469,3.96164811,2796.0,2794.6,4.45260098]
[1769381624666,0.17903,2795.9,2794.6,4.45260098]
[1769381624871,3.96164811,2795.9,2794.6,4.45260098]
[1769381625268,3.96164811,2795.9,2794.6,4.45707099]
[1769381626476,0.17904,2795.8,2794.6,4.45707099]
[1769381627267,0.89443438,2795.6,2794.1,7.82897728]
[1769381627467,35.01775169,2796.5,2792.0,0.89443438]
[1769381627468,0.89443438,2794.2,2792.0,0.89443438]
[1769381627675,0.89443438,2793.3,2792.1,3.86118472]
[1769381628078,0.17923,2792.9,2792.1,3.86118472]
[1769381628378,0.00344266,2792.9,2792.1,0.0029435]
[1769381628775,0.89443438,2792.7,2792.1,0.0029435]
[1769381629174,0.17925,2792.5,2792.1,0.0029435]
[1769381629369,0.17925,2792.5,2791.0,0.89443438]
[1769381629674,0.17925,2792.5,2790.8,2.099]
[1769381630381,0.17925,2792.5,2790.9,3.5581666]
[1769381631275,0.17926,2792.4,2790.9,3.5581666]
[1769381633272,0.00344266,2792.9,2790.9,3.5581666]
[1769381634670,0.00344266,2792.9,2790.9,3.62050493]
[1769381635578,0.00344266,2792.9,2791.4,3.5581666]
[1769381635779,0.00344266,2792.9,2791.6,3.5581666]
[1769381636283,0.17922,2793.0,2791.6,3.5581666]
[1769381636582,0.1792,2793.4,2791.6,3.5581666]
[1769381637381,0.18241941,2793.4,2791.6,3.5581666]
[1769381638084,0.18241941,2793.4,2791.9,3.5581666]
[1769381641488,0.18241941,2793.4,2791.9,7.3821666]
[1769381641682,0.18241941,2793.4,2792.0,3.5581666]
[1769381643285,0.00321941,2793.4,2792.0,7.3821666]
[1769381643486,0.17916,2794.1,2792.2,3.5008823]
[1769381643780,0.17916,2794.1,2792.4,3.5008823]
[1769381643981,0.17916,2794.1,2792.6,3.5008823]
[1769381644183,0.17916,2794.1,2792.8,3.5008823]
[1769381644383,0.00269856,2794.1,2792.8,3.50441926]
[1769381644578,0.17911,2794.7,2792.8,3.50441926]
[1769381645482,0.18191839,2794.7,2792.8,3.50441926]
[1769381645987,0.00280839,2794.7,2793.1,3.5008823]
[1769381646490,0.00280839,2794.7,2793.3,3.5008823]
[1769381649084,0.17906,2795.5,2793.4,3.5008823]
[1769381649279,0.17906,2795.5,2793.4,3.6800723]
[1769381649885,0.18173516,2795.5,2793.4,3.6800723]
[1769381651790,0.18173516,2795.5,2793.6,3.5008823]
[1769381652986,0.1791,2795.0,2793.8,3.5008823]
[1769381653185,0.17911,2794.7,2792.8,0.00353696]
[1769381655291,0.17911,2794.7,2792.9,3.5008823]
[1769381655683,0.17915,2794.1,2792.9,3.5008823]
[1769381655886,2.70604828,2794.8,2792.8,0.00353696]
[1769381656089,0.17917,2793.8,2792.8,0.00353696]
[1769381662391,0.17918,2793.7,2792.8,0.00353696]
[1769381663291,0.17919,2793.5,2792.8,0.00353696]
[1769381663495,0.18324633,2793.5,2792.8,0.00353696]
[1769381664098,0.1792,2793.4,2792.8,0.00353696]
[1769381664295,0.00405633,2793.5,2792.4,3.581]
[1769381664497,4.01765988,2793.4,2792.4,3.581]
[1769381665094,4.01765988,2793.3,2792.4,3.581]
[1769381665295,4.01765988,2793.2,2792.4,3.58428368]
[1769381665497,0.17923,2792.9,2792.4,3.58428368]
[1769381666399,2.11178622,2793.5,2792.4,3.21096368]
[1769381666593,4.01666916,2793.4,2792.4,3.21096368]
[1769381666791,0.17923,2792.9,2792.4,3.21096368]
[1769381667893,0.17923,2792.8,2792.4,3.21096368]
[1769381668599,0.17923,2792.8,2792.4,0.00328368]
[1769381668997,0.17923,2792.8,2792.0,3.53545603]
[1769381670000,0.17923,2792.8,2792.0,3.53804288]
[1769381673900,0.17924,2792.7,2792.0,3.53804288]
[1769381674095,0.17925,2792.5,2792.0,0.00258685]
[1769381675807,2.85563871,2793.1,2791.6,3.84153437]
[1769381675998,0.17927,2792.3,2791.6,3.84153437]
[1769381676406,0.17927,2792.3,2791.3,3.582]
[1769381676704,0.17928,2792.1,2791.2,3.84153437]
[1769381676904,0.17929,2791.9,2791.2,0.00260364]
[1769381677505,2.101,2791.8,2790.4,3.84153437]
[1769381677706,0.17933,2791.3,2790.4,3.84153437]
[1769381678407,0.18274178,2791.3,2790.4,3.84440998]
[1769381682403,0.00341178,2791.3,2790.4,3.84440998]
[1769381682611,0.17929,2792.0,2790.4,3.84440998]
[1769381683012,0.17929,2792.0,2790.5,3.84153437]
[1769381683510,0.18244783,2792.0,2790.5,3.84153437]
[1769381691527,0.17929,2791.9,2790.5,3.84153437]
[1769381692931,0.17929,2791.9,2790.7,3.84153437]
[1769381693130,0.17929,2791.9,2790.8,3.824]
[1769381693432,0.17929,2791.9,2790.9,3.84153437]
[1769381698725,0.17929,2791.9,2791.1,3.84153437]
[1769381699024,0.17929,2791.9,2791.2,3.84153437]
[1769381700925,0.00315783,2792.0,2791.2,3.84153437]
[1769381702332,31.61794576,2792.6,2791.4,3.84153437]
[1769381702534,2.27072896,2792.9,2791.5,3.84153437]
[1769381702733,4.06661576,2792.8,2791.5,3.84153437]
[1769381702927,4.06661576,2792.7,2791.5,3.84153437]
[1769381703134,2.09149896,2792.9,2791.5,3.84153437]
[1769381703326,2.09521985,2792.9,2791.5,3.84153437]
[1769381703527,6.16196066,2792.9,2791.5,3.84153437]
[1769381703830,2.09521985,2792.9,2791.5,3.84153437]
[1769381704230,6.16275091,2792.9,2791.5,3.84153437]
[1769381704430,4.06753106,2792.8,2791.5,3.84153437]
[1769381704633,0.17925,2792.6,2791.5,3.84153437]
[1769381712542,0.17925,2792.6,2791.5,6.65853437]
[1769381712841,0.17925,2792.6,2791.6,3.85128916]
[1769381714839,0.17925,2792.6,2791.7,3.85128916]
[1769381715342,0.00372089,2792.9,2791.7,3.85128916]
[1769381719249,0.00372089,2792.9,2791.7,7.67528916]
[1769381719447,0.00372089,2792.9,2791.8,3.64747089]
[1769381723252,0.18295089,2792.9,2791.8,3.64747089]
[1769381725253,0.17923,2792.8,2791.8,3.64747089]
[1769381726850,0.00372089,2792.9,2791.8,3.64747089]
[1769381727051,31.61794576,2793.8,2792.6,3.64747089]
[1769381727249,4.25030623,2793.7,2792.7,0.89668391]
[1769381727447,0.17918,2793.7,2792.8,3.64747089]
[1769381727950,0.18369452,2793.7,2792.8,3.65040441]
[1769381728253,0.17919,2793.5,2792.8,3.65040441]
[1769381728457,0.17919,2793.4,2792.8,0.00293352]
[1769381728956,0.17919,2793.4,2792.8,3.65040441]
[1769381731963,0.00451452,2793.7,2792.8,3.65040441]
[1769381733463,0.1792,2793.4,2792.8,3.65040441]
[1769381733958,0.00451452,2793.7,2792.8,3.65040441]
[1769381734157,0.17916,2794.0,2792.8,3.65040441]
[1769381734354,0.17912,2794.5,2793.6,3.55987908]
[1769381735165,0.18270901,2794.5,2793.6,3.55987908]
[1769381737266,0.18270901,2794.5,2793.8,3.55987908]
[1769381737467,0.89668391,2795.3,2794.0,3.55987908]
[1769381737662,0.17909,2795.1,2794.0,3.55987908]
[1769381738568,0.18271172,2795.1,2794.2,3.55987908]
[1769381738960,0.18271172,2795.1,2794.4,3.55987908]
[1769381739362,2.934,2795.8,2794.6,3.55987908]
[1769381739761,0.17905,2795.7,2794.8,3.55987908]
[1769381740057,0.17905,2795.7,2795.0,3.55987908]
[1769381740466,0.18222531,2795.7,2795.0,3.56418533]
[1769381741163,3.83068391,2796.5,2795.2,3.55987908]
[1769381741362,0.89668391,2795.9,2795.0,0.00430625]
[1769381741562,0.17905,2795.7,2795.0,0.00430625]
[1769381742369,0.18310799,2795.7,2795.0,0.00430625]
[1769381744771,0.18310799,2795.7,2795.0,3.56418533]
[1769381745467,0.28366835,2796.6,2795.0,3.56418533]
[1769381745774,0.17902,2796.2,2795.0,3.56418533]
[1769381746570,0.18238284,2796.2,2795.0,3.56418533]
[1769381751577,0.18238284,2796.2,2795.2,3.55987908]
[1769381751976,0.00336284,2796.2,2795.2,3.55987908]
[1769381752477,0.17904,2795.9,2795.0,0.00430625]
[1769381754278,0.00336284,2796.2,2795.0,0.00430625]
[1769381754475,0.17906,2795.6,2795.0,0.00430625]
[1769381758178,0.17906,2795.6,2795.0,3.56418533]
[1769381758575,0.17902,2796.1,2795.0,3.56418533]
[1769381759886,0.17903,2796.0,2795.0,3.56418533]
[1769381762779,4.05895697,2795.9,2795.0,0.00430625]
[1769381762980,31.6213086,2796.2,2795.0,0.00430625]
[1769381763282,35.67698406,2796.1,2795.0,0.00430625]
[1769381763483,0.17904,2795.8,2795.0,0.00430625]
[1769381764080,0.17904,2795.8,2795.1,4.47489258]
[1769381764289,0.17904,2795.8,2795.4,3.58011981]
[1769381764882,0.00336284,2796.2,2795.4,3.58011981]
[1769381765184,4.06609321,2796.1,2795.4,3.58011981]
[1769381765385,4.06609321,2796.0,2795.4,3.58011981]
[1769381765584,0.17904,2795.8,2795.4,3.58011981]
[1769381768188,31.61794576,2796.1,2795.4,3.58011981]
[1769381768586,0.17904,2795.8,2795.4,3.58011981]
[1769381781294,31.6213086,2796.2,2795.4,3.58011981]
[1769381782495,0.17904,2795.8,2795.4,3.58011981]
[1769381785093,0.00336284,2796.2,2795.4,3.58011981]
[1769381785297,4.08108962,2796.1,2795.4,3.58011981]
[1769381785492,0.21366839,2796.0,2795.4,3.58011981]
[1769381785690,0.00336284,2796.2,2795.4,3.58011981]
[1769381791594,31.61794576,2796.8,2795.4,3.58011981]
[1769381791796,0.17901,2796.3,2795.6,3.52984593]
[1769381791994,31.61794576,2796.9,2795.6,3.52984593]
[1769381792193,31.79691576,2796.9,2795.6,3.52984593]
[1769381792503,0.18222185,2796.9,2795.6,3.52984593]
[1769381793901,0.18222185,2796.9,2795.6,4.42432387]
[1769381794198,0.18222185,2796.9,2795.7,3.78999524]
[1769381798301,9.96017883,2798.2,2795.7,3.78999524]
[1769381798302,24.96376066,2797.8,2795.7,3.78999524]
[1769381798507,3.74218635,2798.6,2795.6,4.47347794]
[1769381798508,0.17884,2798.9,2797.5,0.89447794]
[1769381798701,0.17884,2798.9,2797.6,2.099]
[1769381799395,0.1825983,2798.9,2797.6,2.10274949]
[1769381799602,3.85678751,2799.4,2798.0,0.89447794]
[1769381799805,0.1788,2799.6,2798.0,0.89447794]
[1769381800502,4.03746666,2799.6,2798.0,0.89447794]
[1769381800702,4.04026821,2799.6,2798.0,0.89447794]
[1769381801208,4.04026821,2799.6,2798.4,0.89447794]
[1769381809015,4.04026821,2799.6,2798.1,0.89447794]
[1769381809215,3.85252142,2799.4,2798.1,0.89447794]
[1769381809613,4.03133142,2799.4,2798.1,0.89447794]
[1769381816820,4.03133142,2799.4,2798.5,0.89447794]
[1769381818424,3.85993949,2799.8,2799.0,0.89447794]
[1769381818623,3.85993949,2801.8,2799.0,0.89447794]
[1769381818825,6.38117883,2802.5,2799.0,0.89447794]
[1769381818826,1.65197996,2802.6,2801.7,0.89447794]
[1769381819232,3.86024534,2802.5,2801.7,0.89447794]
[1769381819431,3.86364492,2802.5,2801.7,0.89882198]
[1769381819624,3.86364492,2802.5,2801.7,0.00434404]
[1769381820130,3.86364492,2802.5,2800.4,0.00466681]
[1769381820131,3.85807332,2802.3,2799.6,0.1788]
[1769381820332,3.85807332,2802.3,2799.7,5.68201085]
[1769381820528,3.85807332,2802.3,2799.8,0.00901085]
[1769381820829,3.85807332,2802.3,2800.3,1.33516781]
[1769381821030,3.85807332,2802.3,2800.3,1.33904536]
[1769381821938,3.85807332,2802.3,2800.4,5.672]
[1769381823733,0.00339958,2802.5,2800.3,1.33904536]
[1769381823734,3.86129249,2802.1,2800.3,0.00387755]
[1769381823931,3.86129249,2801.9,2800.3,0.00387755]
[1769381824637,4.03994249,2801.9,2800.3,0.00387755]
[1769381824934,3.86129249,2801.7,2800.3,0.00387755]
[1769381827034,0.00339958,2802.5,2800.3,3.72775655]
[1769381827339,0.17862,2802.4,2800.4,3.574]
[1769381827532,0.00339958,2802.5,2800.3,2.09987755]
[1769381827533,0.17863,2802.2,2800.3,0.00387755]
[1769381829144,3.48046985,2802.1,2800.3,0.00387755]
[1769381831031,3.48046985,2802.1,2800.3,3.73441491]
[1769381838650,3.48046985,2802.1,2800.3,3.91316491]
[1769381839046,3.48046985,2802.1,2800.5,3.78732702]
[1769381839942,3.48046985,2802.1,2800.5,3.96606702]
[1769381841449,3.48046985,2802.1,2800.6,3.572]
[1769381841644,3.48046985,2802.1,2800.8,1.33558825]
[1769381843647,3.71150738,2802.5,2800.8,1.33558825]